[Event "Late-Titled-Tuesday-Blitz-October-03-2023"]
[Site "Chess.com"]
[Date "2023.10.03"]
[Round "8"]
[White "Road2GM3000"]
[Black "Sjakkerntobi"]
[Result "0-1"]
[WhiteElo "2373"]
[BlackElo "2516"]
[TimeControl "180+1"]
[EndTime "15:23:52 PDT"]
[Termination "Sjakkerntobi won on time"]

1. d4 {[%clk 0:03:00.4]} 1... d5 {[%clk 0:02:59.8]} 2. c4 {[%clk 0:03:00.5]}
2... c6 {[%clk 0:03:00.1]} 3. Nc3 {[%clk 0:02:59.5]} 3... Nf6 {[%clk 0:03:00.3]}
4. cxd5 {[%clk 0:02:59.5]} 4... cxd5 {[%clk 0:03:00.5]} 5. Nf3 {[%clk
0:03:00.2]} 5... Nc6 {[%clk 0:03:00.4]} 6. Bf4 {[%clk 0:03:00.9]} 6... a6 {[%clk
0:02:58.6]} 7. e3 {[%clk 0:03:01.6]} 7... Bg4 {[%clk 0:02:49.2]} 8. Qb3 {[%clk
0:03:00.5]} 8... Na5 {[%clk 0:02:45.3]} 9. Qa4+ {[%clk 0:02:59.3]} 9... b5
{[%clk 0:02:36.8]} 10. Qd1 {[%clk 0:02:30.1]} 10... e6 {[%clk 0:02:35.4]} 11.
Bd3 {[%clk 0:02:08.1]} 11... Bd6 {[%clk 0:02:34.3]} 12. Bxd6 {[%clk 0:02:06.4]}
12... Qxd6 {[%clk 0:02:35.2]} 13. O-O {[%clk 0:02:06]} 13... O-O {[%clk
0:02:35.2]} 14. Rc1 {[%clk 0:02:03.7]} 14... Rfc8 {[%clk 0:02:35]} 15. b3 {[%clk
0:01:56.5]} 15... Qa3 {[%clk 0:02:33.9]} 16. Qd2 {[%clk 0:01:53.5]} 16... Bxf3
{[%clk 0:02:31.4]} 17. gxf3 {[%clk 0:01:53.6]} 17... Qd6 {[%clk 0:02:27.1]} 18.
Nxd5 {[%clk 0:01:44.6]} 18... Qxd5 {[%clk 0:02:25.9]} 19. Qxa5 {[%clk
0:01:42.9]} 19... Qxf3 {[%clk 0:02:25.8]} 20. Qd2 {[%clk 0:01:27.3]} 20... Rd8
{[%clk 0:02:13.3]} 21. Qe2 {[%clk 0:01:24.3]} 21... Qh3 {[%clk 0:02:12.9]} 22.
Kh1 {[%clk 0:01:19.1]} 22... Rd5 {[%clk 0:02:10.2]} 23. Rg1 {[%clk 0:01:11.1]}
23... Rh5 {[%clk 0:02:09.1]} 24. Rg2 {[%clk 0:01:05.8]} 24... Rd8 {[%clk
0:02:02.7]} 25. Rcg1 {[%clk 0:01:05.4]} 25... g6 {[%clk 0:02:03.1]} 26. f3
{[%clk 0:01:03.6]} 26... Nd5 {[%clk 0:01:59.3]} 27. Rg4 {[%clk 0:00:42.5]} 27...
Nxe3 {[%clk 0:01:58.2]} 28. R1g3 {[%clk 0:00:43.2]} 28... Qxh2+ {[%clk
0:01:41.1]} 29. Qxh2 {[%clk 0:00:42.7]} 29... Rxh2+ {[%clk 0:01:42]} 30. Kxh2
{[%clk 0:00:43.1]} 30... Nxg4+ {[%clk 0:01:42.9]} 31. Rxg4 {[%clk 0:00:43.2]}
31... f5 {[%clk 0:01:42.5]} 32. Rh4 {[%clk 0:00:38.8]} 32... Kg7 {[%clk
0:01:40.6]} 33. Kg3 {[%clk 0:00:24]} 33... g5 {[%clk 0:01:39.2]} 34. Rh2 {[%clk
0:00:20.7]} 34... Rxd4 {[%clk 0:01:39]} 35. Bc2 {[%clk 0:00:19.8]} 35... Kg6
{[%clk 0:01:38.7]} 36. a4 {[%clk 0:00:19.4]} 36... bxa4 {[%clk 0:01:38.4]} 37.
bxa4 {[%clk 0:00:19.7]} 37... h5 {[%clk 0:01:37.4]} 38. Re2 {[%clk 0:00:19.5]}
38... h4+ {[%clk 0:01:36.9]} 39. Kg2 {[%clk 0:00:19.1]} 39... Kf6 {[%clk
0:01:37.2]} 40. Bb3 {[%clk 0:00:19.2]} 40... Rd6 {[%clk 0:01:37.4]} 41. Rc2
{[%clk 0:00:18.8]} 41... g4 {[%clk 0:01:36.1]} 42. Bc4 {[%clk 0:00:12.8]} 42...
Kg5 {[%clk 0:01:33.4]} 43. Be2 {[%clk 0:00:12.7]} 43... e5 {[%clk 0:01:30.8]}
44. fxg4 {[%clk 0:00:09.9]} 44... fxg4 {[%clk 0:01:31.3]} 45. Rc5 {[%clk
0:00:09.6]} 45... Kf4 {[%clk 0:01:29.2]} 46. Bxg4 {[%clk 0:00:02.2]} 46... Kxg4
{[%clk 0:01:23]} 47. Rxe5 {[%clk 0:00:02.4]} 47... Rd2+ {[%clk 0:01:23.9]} 48.
Kg1 {[%clk 0:00:02.4]} 48... Rd4 {[%clk 0:01:19.1]} 49. a5 {[%clk 0:00:02.4]}
49... Ra4 {[%clk 0:01:19.2]} 50. Rd5 {[%clk 0:00:02.6]} 50... Ra3 {[%clk
0:01:16.5]} 0-1

[Event "Late-Titled-Tuesday-Blitz-October-03-2023"]
[Site "Chess.com"]
[Date "2023.10.03"]
[Round "8"]
[White "babero_gordo"]
[Black "Eloist"]
[Result "1-0"]
[WhiteElo "1983"]
[BlackElo "2423"]
[TimeControl "180+1"]
[EndTime "15:23:52 PDT"]
[Termination "babero_gordo won on time"]

1. e4 {[%clk 0:03:00.9]} 1... e6 {[%clk 0:02:58.9]} 2. d4 {[%clk 0:03:00.4]}
2... d5 {[%clk 0:02:56.4]} 3. e5 {[%clk 0:03:00.4]} 3... c5 {[%clk 0:02:55.7]}
4. c3 {[%clk 0:02:59.8]} 4... Qb6 {[%clk 0:02:54.9]} 5. Nf3 {[%clk 0:02:59.2]}
5... Bd7 {[%clk 0:02:54.8]} 6. Bd3 {[%clk 0:02:57.1]} 6... cxd4 {[%clk
0:02:54.5]} 7. O-O {[%clk 0:02:57]} 7... Nc6 {[%clk 0:02:53.4]} 8. Re1 {[%clk
0:02:56.2]} 8... Nge7 {[%clk 0:02:50.1]} 9. h4 {[%clk 0:02:55.7]} 9... dxc3
{[%clk 0:02:33.7]} 10. Nxc3 {[%clk 0:02:54.5]} 10... Nc8 {[%clk 0:02:01.3]} 11.
Ng5 {[%clk 0:02:30.6]} 11... h6 {[%clk 0:01:43.1]} 12. Qh5 {[%clk 0:02:22.1]}
12... Nd8 {[%clk 0:01:38.1]} 13. Nxd5 {[%clk 0:01:47.4]} 13... exd5 {[%clk
0:01:05.5]} 14. e6 {[%clk 0:01:40.1]} 14... Bxe6 {[%clk 0:00:59.8]} 15. Nxe6
{[%clk 0:01:28.9]} 15... Nxe6 {[%clk 0:00:49.1]} 16. Qxd5 {[%clk 0:00:51.4]}
16... Bb4 {[%clk 0:00:35.1]} 17. Bb5+ {[%clk 0:00:44.6]} 17... Kf8 {[%clk
0:00:33.4]} 18. Rd1 {[%clk 0:00:27.1]} 18... Ne7 {[%clk 0:00:32.4]} 19. Qc4
{[%clk 0:00:17.4]} 19... Bc5 {[%clk 0:00:16.4]} 20. Qe2 {[%clk 0:00:15.8]} 1-0

[Event "Late-Titled-Tuesday-Blitz-October-03-2023"]
[Site "Chess.com"]
[Date "2023.10.03"]
[Round "8"]
[White "Arteler"]
[Black "jup1978"]
[Result "0-1"]
[WhiteElo "2613"]
[BlackElo "2520"]
[TimeControl "180+1"]
[EndTime "15:24:07 PDT"]
[Termination "jup1978 won by resignation"]

1. e4 {[%clk 0:02:58.8]} 1... c6 {[%clk 0:02:59.1]} 2. d4 {[%clk 0:02:54.2]}
2... d5 {[%clk 0:03:00]} 3. exd5 {[%clk 0:02:53.9]} 3... cxd5 {[%clk 0:03:00.9]}
4. c4 {[%clk 0:02:52.4]} 4... Nf6 {[%clk 0:02:59.5]} 5. Nc3 {[%clk 0:02:47.2]}
5... g6 {[%clk 0:02:59.7]} 6. Qb3 {[%clk 0:02:42]} 6... Bg7 {[%clk 0:02:55]} 7.
cxd5 {[%clk 0:02:40.3]} 7... O-O {[%clk 0:02:54.6]} 8. Be2 {[%clk 0:02:39.2]}
8... a6 {[%clk 0:02:49.5]} 9. Bf3 {[%clk 0:02:35.8]} 9... Nbd7 {[%clk
0:02:45.9]} 10. Nge2 {[%clk 0:02:32.3]} 10... Qb6 {[%clk 0:02:41.2]} 11. O-O
{[%clk 0:02:29]} 11... Qxb3 {[%clk 0:02:40]} 12. axb3 {[%clk 0:02:29.8]} 12...
Nb6 {[%clk 0:02:37.8]} 13. Bf4 {[%clk 0:02:26.4]} 13... Bg4 {[%clk 0:02:28.4]}
14. Bxg4 {[%clk 0:02:23]} 14... Nxg4 {[%clk 0:02:29.3]} 15. d6 {[%clk
0:02:21.6]} 15... exd6 {[%clk 0:02:18.3]} 16. Bxd6 {[%clk 0:02:22.5]} 16... Rfe8
{[%clk 0:02:17.6]} 17. h3 {[%clk 0:02:22.1]} 17... Nf6 {[%clk 0:02:15.5]} 18.
Rfe1 {[%clk 0:02:03.7]} 18... Nfd5 {[%clk 0:02:10.3]} 19. Rad1 {[%clk
0:01:50.3]} 19... Rac8 {[%clk 0:01:55.1]} 20. Bc5 {[%clk 0:01:32]} 20... Re6
{[%clk 0:01:40.6]} 21. Nxd5 {[%clk 0:01:27.4]} 21... Nxd5 {[%clk 0:01:39.8]} 22.
Nc3 {[%clk 0:01:27.8]} 22... Nf4 {[%clk 0:01:30.9]} 23. Re3 {[%clk 0:01:11.3]}
23... Rd8 {[%clk 0:01:09.4]} 24. d5 {[%clk 0:00:58.7]} 24... Bxc3 {[%clk
0:00:44.9]} 25. bxc3 {[%clk 0:00:58.5]} 25... Rxe3 {[%clk 0:00:41.4]} 26. Bxe3
{[%clk 0:00:55.9]} 26... Rxd5 {[%clk 0:00:39.4]} 27. Rxd5 {[%clk 0:00:51.7]}
27... Nxd5 {[%clk 0:00:40.3]} 28. Bd4 {[%clk 0:00:52]} 28... Kf8 {[%clk
0:00:39.6]} 29. Kf1 {[%clk 0:00:50.6]} 29... Ke7 {[%clk 0:00:39.5]} 30. Ke2
{[%clk 0:00:51.1]} 30... Ke6 {[%clk 0:00:39.3]} 31. g3 {[%clk 0:00:51.5]} 31...
f5 {[%clk 0:00:33.9]} 32. Kd3 {[%clk 0:00:51.5]} 32... b5 {[%clk 0:00:28.9]} 33.
c4 {[%clk 0:00:51.1]} 33... bxc4+ {[%clk 0:00:29.8]} 34. bxc4 {[%clk 0:00:49.8]}
34... Nb4+ {[%clk 0:00:27.8]} 35. Kc3 {[%clk 0:00:49.6]} 35... Nc6 {[%clk
0:00:27.7]} 36. Bh8 {[%clk 0:00:48.3]} 36... g5 {[%clk 0:00:27]} 37. Kb3 {[%clk
0:00:46.6]} 37... g4 {[%clk 0:00:26.4]} 38. Kc3 {[%clk 0:00:46.9]} 38... gxh3
{[%clk 0:00:25]} 39. Kb3 {[%clk 0:00:47.8]} 39... h2 {[%clk 0:00:24.9]} 40. Kc3
{[%clk 0:00:48.7]} 40... h1=Q {[%clk 0:00:24.1]} 0-1

[Event "Late-Titled-Tuesday-Blitz-October-03-2023"]
[Site "Chess.com"]
[Date "2023.10.03"]
[Round "8"]
[White "marik_spb"]
[Black "Grossboss19"]
[Result "0-1"]
[WhiteElo "2386"]
[BlackElo "2520"]
[TimeControl "180+1"]
[EndTime "15:24:12 PDT"]
[Termination "Grossboss19 won by checkmate"]

1. d4 {[%clk 0:03:00.9]} 1... Nf6 {[%clk 0:02:31.8]} 2. c4 {[%clk 0:02:59.9]}
2... e6 {[%clk 0:02:27.5]} 3. Nf3 {[%clk 0:02:59.3]} 3... d5 {[%clk 0:02:27.6]}
4. g3 {[%clk 0:02:59.3]} 4... Be7 {[%clk 0:02:26.9]} 5. Bg2 {[%clk 0:02:59.4]}
5... dxc4 {[%clk 0:02:27.4]} 6. O-O {[%clk 0:02:58.8]} 6... O-O {[%clk
0:02:27.7]} 7. Qc2 {[%clk 0:02:45.6]} 7... a6 {[%clk 0:02:21.5]} 8. a4 {[%clk
0:02:31.7]} 8... b5 {[%clk 0:02:08.4]} 9. axb5 {[%clk 0:02:28.9]} 9... Bb7
{[%clk 0:02:05.3]} 10. bxa6 {[%clk 0:02:27.8]} 10... Rxa6 {[%clk 0:02:03.5]} 11.
Rxa6 {[%clk 0:02:26.6]} 11... Bxa6 {[%clk 0:01:58.3]} 12. Na3 {[%clk 0:02:24.6]}
12... Bxa3 {[%clk 0:01:55.2]} 13. bxa3 {[%clk 0:02:25.5]} 13... Nbd7 {[%clk
0:01:55.2]} 14. Ne5 {[%clk 0:02:23]} 14... Nxe5 {[%clk 0:01:52.9]} 15. dxe5
{[%clk 0:02:22.4]} 15... Nd7 {[%clk 0:01:53.3]} 16. Rd1 {[%clk 0:02:14.9]} 16...
Qe7 {[%clk 0:01:50.8]} 17. Be4 {[%clk 0:01:38.6]} 17... h6 {[%clk 0:01:44.9]}
18. Qc3 {[%clk 0:01:31]} 18... Nb6 {[%clk 0:01:39.1]} 19. Bc2 {[%clk 0:01:23.3]}
19... Rd8 {[%clk 0:01:37.9]} 20. Rd4 {[%clk 0:01:06.7]} 20... Rxd4 {[%clk
0:01:31.7]} 21. Qxd4 {[%clk 0:01:07.6]} 21... Qd7 {[%clk 0:01:31.3]} 22. Qe4
{[%clk 0:01:06.5]} 22... g6 {[%clk 0:01:25.6]} 23. Bxh6 {[%clk 0:01:04.1]} 23...
Qd5 {[%clk 0:01:23.9]} 24. Qf4 {[%clk 0:00:58.1]} 24... Nd7 {[%clk 0:01:17.2]}
25. h4 {[%clk 0:00:49.4]} 25... Qxe5 {[%clk 0:01:12.5]} 26. Qf3 {[%clk
0:00:49.2]} 26... Qd5 {[%clk 0:01:10.4]} 27. Be4 {[%clk 0:00:47]} 27... Qd1+
{[%clk 0:01:06.6]} 28. Kh2 {[%clk 0:00:45.1]} 28... Ne5 {[%clk 0:00:56.5]} 29.
Qf4 {[%clk 0:00:33.9]} 29... Qd6 {[%clk 0:00:55.5]} 30. h5 {[%clk 0:00:31]}
30... c3 {[%clk 0:00:53.2]} 31. hxg6 {[%clk 0:00:28.5]} 31... Nxg6 {[%clk
0:00:54.1]} 32. Qf6 {[%clk 0:00:16]} 32... Qe5 {[%clk 0:00:45.6]} 33. Bg7 {[%clk
0:00:14.7]} 33... Qxe4 {[%clk 0:00:30.5]} 34. Qxc3 {[%clk 0:00:14.8]} 34... Bb7
{[%clk 0:00:28.1]} 35. f3 {[%clk 0:00:07.2]} 35... Qxe2+ {[%clk 0:00:28.2]} 36.
Kh3 {[%clk 0:00:07.9]} 36... Qxf3 {[%clk 0:00:26.6]} 37. Qxc7 {[%clk 0:00:06.7]}
37... Qh5# {[%clk 0:00:26.2]} 0-1

[Event "Late-Titled-Tuesday-Blitz-October-03-2023"]
[Site "Chess.com"]
[Date "2023.10.03"]
[Round "8"]
[White "koncheto"]
[Black "GaiozNigalidze"]
[Result "1-0"]
[WhiteElo "2547"]
[BlackElo "2730"]
[TimeControl "180+1"]
[EndTime "15:24:14 PDT"]
[Termination "koncheto won by checkmate"]

1. e4 {[%clk 0:03:00.9]} 1... e5 {[%clk 0:02:57.1]} 2. Nf3 {[%clk 0:03:01.2]}
2... Nc6 {[%clk 0:02:57.5]} 3. Bc4 {[%clk 0:03:00.8]} 3... Nf6 {[%clk
0:02:57.5]} 4. d3 {[%clk 0:03:00.7]} 4... Bc5 {[%clk 0:02:56.6]} 5. c3 {[%clk
0:03:00.5]} 5... d6 {[%clk 0:02:53.4]} 6. O-O {[%clk 0:02:58.8]} 6... h6 {[%clk
0:02:51.6]} 7. Nbd2 {[%clk 0:02:57]} 7... a5 {[%clk 0:02:48.6]} 8. Bb3 {[%clk
0:02:55.7]} 8... Bg4 {[%clk 0:02:43]} 9. Re1 {[%clk 0:02:53.9]} 9... Qd7 {[%clk
0:02:39.5]} 10. Nf1 {[%clk 0:02:44.1]} 10... Ne7 {[%clk 0:02:16]} 11. Ng3 {[%clk
0:02:08]} 11... g6 {[%clk 0:02:10.9]} 12. h3 {[%clk 0:02:03.8]} 12... Be6 {[%clk
0:02:10.3]} 13. d4 {[%clk 0:01:48.5]} 13... exd4 {[%clk 0:02:04.4]} 14. cxd4
{[%clk 0:01:46.5]} 14... Bxb3 {[%clk 0:02:04.3]} 15. Qxb3 {[%clk 0:01:45.7]}
15... Bb6 {[%clk 0:01:55.2]} 16. e5 {[%clk 0:01:33.4]} 16... Nfd5 {[%clk
0:01:47.4]} 17. exd6 {[%clk 0:01:16.8]} 17... Qxd6 {[%clk 0:01:47]} 18. Ne5
{[%clk 0:01:10.2]} 18... a4 {[%clk 0:01:32.3]} 19. Qf3 {[%clk 0:01:05.2]} 19...
f5 {[%clk 0:01:14.6]} 20. Nxg6 {[%clk 0:00:50]} 20... Qxg6 {[%clk 0:01:10.9]}
21. Qxd5 {[%clk 0:00:49.3]} 21... Qf7 {[%clk 0:01:07.2]} 22. Qxb7 {[%clk
0:00:33.3]} 22... Rd8 {[%clk 0:01:07.3]} 23. Qc6+ {[%clk 0:00:29.7]} 23... Kf8
{[%clk 0:01:07.8]} 24. Bxh6+ {[%clk 0:00:24.2]} 24... Kg8 {[%clk 0:01:08.1]} 25.
Rxe7 {[%clk 0:00:23.7]} 25... Rxh6 {[%clk 0:01:04.6]} 26. Qxh6 {[%clk
0:00:18.6]} 26... Qxe7 {[%clk 0:01:05.1]} 27. Nxf5 {[%clk 0:00:18.3]} 27... Qf8
{[%clk 0:00:59.9]} 28. Qg5+ {[%clk 0:00:14.8]} 28... Kh8 {[%clk 0:01:00.2]} 29.
Re1 {[%clk 0:00:07.2]} 29... Rd7 {[%clk 0:00:45.1]} 30. Ne7 {[%clk 0:00:06.9]}
30... Rxe7 {[%clk 0:00:17.3]} 31. Rxe7 {[%clk 0:00:06]} 31... Bxd4 {[%clk
0:00:15.4]} 32. Qh5+ {[%clk 0:00:06.2]} 32... Kg8 {[%clk 0:00:15.8]} 33. Qh7#
{[%clk 0:00:06.5]} 1-0

[Event "Late-Titled-Tuesday-Blitz-October-03-2023"]
[Site "Chess.com"]
[Date "2023.10.03"]
[Round "8"]
[White "Mikhal867"]
[Black "CraiggoryC"]
[Result "1-0"]
[WhiteElo "2455"]
[BlackElo "2275"]
[TimeControl "180+1"]
[EndTime "15:24:14 PDT"]
[Termination "Mikhal867 won by resignation"]

1. d4 {[%clk 0:02:58.9]} 1... e6 {[%clk 0:02:59.5]} 2. e4 {[%clk 0:02:57.6]}
2... d5 {[%clk 0:02:59.3]} 3. e5 {[%clk 0:02:57.2]} 3... c5 {[%clk 0:02:59.3]}
4. Qg4 {[%clk 0:02:57.7]} 4... Nc6 {[%clk 0:02:57.9]} 5. Nf3 {[%clk 0:02:56.8]}
5... cxd4 {[%clk 0:02:57.3]} 6. Bd3 {[%clk 0:02:54.9]} 6... Qc7 {[%clk
0:02:44.7]} 7. Bf4 {[%clk 0:02:48.6]} 7... f5 {[%clk 0:01:52.2]} 8. Qg3 {[%clk
0:02:25.7]} 8... Nge7 {[%clk 0:01:46.3]} 9. O-O {[%clk 0:02:02.8]} 9... Ng6
{[%clk 0:01:46]} 10. Re1 {[%clk 0:02:02.2]} 10... Be7 {[%clk 0:01:39.7]} 11. h4
{[%clk 0:01:56.1]} 11... O-O {[%clk 0:01:29.5]} 12. h5 {[%clk 0:01:51.1]} 12...
Nxf4 {[%clk 0:01:29.5]} 13. Qxf4 {[%clk 0:01:47]} 13... Bd7 {[%clk 0:01:16.8]}
14. a3 {[%clk 0:01:36.1]} 14... Be8 {[%clk 0:01:07.3]} 15. h6 {[%clk 0:01:32.4]}
15... Bh5 {[%clk 0:00:35.6]} 16. Nbd2 {[%clk 0:01:29]} 16... Rf7 {[%clk
0:00:24.5]} 17. Nxd4 {[%clk 0:01:24.4]} 17... Nxd4 {[%clk 0:00:20.3]} 18. Qxd4
{[%clk 0:01:24.3]} 18... gxh6 {[%clk 0:00:18.7]} 19. c4 {[%clk 0:00:40.1]} 19...
Bc5 {[%clk 0:00:13.3]} 20. Qf4 {[%clk 0:00:38.4]} 20... Rg7 {[%clk 0:00:10.3]}
21. cxd5 {[%clk 0:00:35.4]} 21... exd5 {[%clk 0:00:10.3]} 22. Rac1 {[%clk
0:00:29.3]} 22... Rf8 {[%clk 0:00:07.3]} 23. b4 {[%clk 0:00:27.1]} 23... Rg4
{[%clk 0:00:07.2]} 24. Qxh6 {[%clk 0:00:21.3]} 24... Bxf2+ {[%clk 0:00:05.8]}
25. Kxf2 {[%clk 0:00:19.4]} 25... Qb6+ {[%clk 0:00:05.2]} 26. Qxb6 {[%clk
0:00:16.6]} 26... axb6 {[%clk 0:00:05.6]} 27. Nf3 {[%clk 0:00:14.1]} 27... Rf4
{[%clk 0:00:05.1]} 28. Rh1 {[%clk 0:00:12.7]} 28... Bxf3 {[%clk 0:00:04.9]} 29.
gxf3 {[%clk 0:00:12.6]} 29... Rd4 {[%clk 0:00:05.6]} 30. Ke3 {[%clk 0:00:12.5]}
30... Rc4 {[%clk 0:00:03.9]} 31. Bxc4 {[%clk 0:00:12.1]} 31... dxc4 {[%clk
0:00:04.8]} 1-0

[Event "Late-Titled-Tuesday-Blitz-October-03-2023"]
[Site "Chess.com"]
[Date "2023.10.03"]
[Round "8"]
[White "vanyakuba"]
[Black "Metadast"]
[Result "0-1"]
[WhiteElo "2370"]
[BlackElo "2532"]
[TimeControl "180+1"]
[EndTime "15:24:17 PDT"]
[Termination "Metadast won by resignation"]

1. e4 {[%clk 0:03:00.9]} 1... e6 {[%clk 0:03:00]} 2. d4 {[%clk 0:03:00.7]} 2...
d5 {[%clk 0:03:00.9]} 3. exd5 {[%clk 0:03:01.5]} 3... exd5 {[%clk 0:03:00.7]} 4.
Nf3 {[%clk 0:03:02.4]} 4... Nf6 {[%clk 0:03:01]} 5. c4 {[%clk 0:03:02.4]} 5...
Bb4+ {[%clk 0:03:00.4]} 6. Nc3 {[%clk 0:03:02.1]} 6... O-O {[%clk 0:03:01.3]} 7.
Bd3 {[%clk 0:03:02.1]} 7... Re8+ {[%clk 0:03:01]} 8. Be3 {[%clk 0:03:01.6]} 8...
Nc6 {[%clk 0:03:01.2]} 9. O-O {[%clk 0:03:00.2]} 9... Bg4 {[%clk 0:03:01.4]} 10.
h3 {[%clk 0:02:47.1]} 10... Bh5 {[%clk 0:03:00.2]} 11. a3 {[%clk 0:02:38.6]}
11... Bd6 {[%clk 0:02:51.6]} 12. cxd5 {[%clk 0:02:27.4]} 12... Ne7 {[%clk
0:02:49.7]} 13. Bg5 {[%clk 0:02:13.6]} 13... Bg6 {[%clk 0:02:47.5]} 14. Bxf6
{[%clk 0:01:48.5]} 14... gxf6 {[%clk 0:02:48.4]} 15. Re1 {[%clk 0:01:42.5]}
15... Kh8 {[%clk 0:02:38.4]} 16. Bxg6 {[%clk 0:01:25]} 16... hxg6 {[%clk
0:02:34.7]} 17. Qd3 {[%clk 0:01:11.9]} 17... Qd7 {[%clk 0:02:30.7]} 18. Re2
{[%clk 0:01:07.5]} 18... Nf5 {[%clk 0:02:04]} 19. Rae1 {[%clk 0:01:03.3]} 19...
Rxe2 {[%clk 0:02:03]} 20. Qxe2 {[%clk 0:01:00.7]} 20... Kg7 {[%clk 0:02:00.9]}
21. Qe4 {[%clk 0:00:43.7]} 21... Ne7 {[%clk 0:01:52.2]} 22. h4 {[%clk
0:00:39.1]} 22... Rh8 {[%clk 0:01:48.5]} 23. g3 {[%clk 0:00:34.4]} 23... a6
{[%clk 0:01:39.1]} 24. Kg2 {[%clk 0:00:34.2]} 24... Rh5 {[%clk 0:01:27.1]} 25.
Nd2 {[%clk 0:00:25.6]} 25... f5 {[%clk 0:01:17.4]} 26. Qf3 {[%clk 0:00:23.5]}
26... f4 {[%clk 0:01:17.2]} 27. Nc4 {[%clk 0:00:17.7]} 27... fxg3 {[%clk
0:01:11.3]} 28. fxg3 {[%clk 0:00:13.1]} 28... Nf5 {[%clk 0:01:07.8]} 29. Ne5
{[%clk 0:00:12.9]} 29... Qd8 {[%clk 0:00:48.5]} 30. Rf1 {[%clk 0:00:04.9]} 30...
f6 {[%clk 0:00:44.8]} 31. Ng4 {[%clk 0:00:03.2]} 31... Bxg3 {[%clk 0:00:40.2]}
32. Qe4 {[%clk 0:00:03.1]} 32... Rxh4 {[%clk 0:00:36.3]} 33. Qe6 {[%clk
0:00:02.5]} 33... Rxg4 {[%clk 0:00:34.8]} 34. Ne4 {[%clk 0:00:02.9]} 34... Be5+
{[%clk 0:00:30.5]} 35. Kh3 {[%clk 0:00:03]} 35... Rh4+ {[%clk 0:00:29.1]} 36.
Kg2 {[%clk 0:00:03.2]} 36... Rxe4 {[%clk 0:00:29.2]} 0-1

[Event "Late-Titled-Tuesday-Blitz-October-03-2023"]
[Site "Chess.com"]
[Date "2023.10.03"]
[Round "8"]
[White "Garmendiarov"]
[Black "Lion_DL"]
[Result "1/2-1/2"]
[WhiteElo "2331"]
[BlackElo "2479"]
[TimeControl "180+1"]
[EndTime "15:24:17 PDT"]
[Termination "Game drawn - insufficient material"]

1. d4 {[%clk 0:03:00.9]} 1... Nf6 {[%clk 0:02:58.2]} 2. Bf4 {[%clk 0:03:01.3]}
2... d5 {[%clk 0:02:53]} 3. e3 {[%clk 0:03:01.3]} 3... c5 {[%clk 0:02:53.6]} 4.
Nd2 {[%clk 0:03:01.3]} 4... cxd4 {[%clk 0:02:52]} 5. exd4 {[%clk 0:03:02.2]}
5... a6 {[%clk 0:02:52]} 6. Ngf3 {[%clk 0:03:01.1]} 6... Bf5 {[%clk 0:02:52]} 7.
c3 {[%clk 0:03:01]} 7... Nc6 {[%clk 0:02:52.1]} 8. Be2 {[%clk 0:03:00.7]} 8...
e6 {[%clk 0:02:52.6]} 9. O-O {[%clk 0:03:00]} 9... Bd6 {[%clk 0:02:52.5]} 10.
Bxd6 {[%clk 0:02:58.3]} 10... Qxd6 {[%clk 0:02:52.1]} 11. Re1 {[%clk 0:02:57.8]}
11... h6 {[%clk 0:02:50.7]} 12. Ne5 {[%clk 0:02:52.3]} 12... O-O {[%clk
0:02:47.1]} 13. Ndf3 {[%clk 0:02:50.1]} 13... Ne4 {[%clk 0:02:45.7]} 14. Bd3
{[%clk 0:02:47.9]} 14... f6 {[%clk 0:02:38.2]} 15. Nxc6 {[%clk 0:02:47.5]} 15...
bxc6 {[%clk 0:02:38.4]} 16. c4 {[%clk 0:02:40.4]} 16... a5 {[%clk 0:02:27.5]}
17. c5 {[%clk 0:02:34.2]} 17... Qf4 {[%clk 0:02:23.9]} 18. Qc1 {[%clk
0:02:14.3]} 18... Qc7 {[%clk 0:01:56.3]} 19. Nd2 {[%clk 0:01:53.5]} 19... Nxd2
{[%clk 0:01:43.3]} 20. Qxd2 {[%clk 0:01:54.4]} 20... Bxd3 {[%clk 0:01:41.1]} 21.
Qxd3 {[%clk 0:01:55.3]} 21... e5 {[%clk 0:01:40.9]} 22. Qg3 {[%clk 0:01:43.7]}
22... Rae8 {[%clk 0:01:33.9]} 23. Re2 {[%clk 0:01:42.7]} 23... Qb8 {[%clk
0:01:30.1]} 24. Rae1 {[%clk 0:01:30.3]} 24... exd4 {[%clk 0:01:10.7]} 25. Qd3
{[%clk 0:01:14.8]} 25... Rxe2 {[%clk 0:01:03.2]} 26. Rxe2 {[%clk 0:01:15.7]}
26... Re8 {[%clk 0:00:59.5]} 27. g3 {[%clk 0:01:06.4]} 27... Kf7 {[%clk
0:00:40.8]} 28. Rxe8 {[%clk 0:01:04.6]} 28... Qxe8 {[%clk 0:00:38.4]} 29. Qxd4
{[%clk 0:01:05]} 29... Qe1+ {[%clk 0:00:36.2]} 30. Kg2 {[%clk 0:01:05.3]} 30...
Qe4+ {[%clk 0:00:25.2]} 31. Qxe4 {[%clk 0:01:05.6]} 31... dxe4 {[%clk
0:00:26.1]} 32. f3 {[%clk 0:01:02.9]} 32... f5 {[%clk 0:00:26.3]} 33. fxe4
{[%clk 0:01:01.3]} 33... fxe4 {[%clk 0:00:27.2]} 34. Kf2 {[%clk 0:00:59.7]}
34... Ke6 {[%clk 0:00:27.8]} 35. Ke3 {[%clk 0:01:00.4]} 35... Kd5 {[%clk
0:00:28.4]} 36. g4 {[%clk 0:00:48.9]} 36... a4 {[%clk 0:00:19.7]} 37. b4 {[%clk
0:00:47.2]} 37... axb3 {[%clk 0:00:17.2]} 38. axb3 {[%clk 0:00:48.1]} 38... Kxc5
{[%clk 0:00:17.6]} 39. Kxe4 {[%clk 0:00:48.5]} 39... Kb4 {[%clk 0:00:17.6]} 40.
Kd4 {[%clk 0:00:46.2]} 40... Kxb3 {[%clk 0:00:17.6]} 41. Kc5 {[%clk 0:00:46.6]}
41... Kc3 {[%clk 0:00:17.9]} 42. Kxc6 {[%clk 0:00:47.3]} 42... Kd4 {[%clk
0:00:18.5]} 43. Kd6 {[%clk 0:00:47.1]} 43... Ke4 {[%clk 0:00:18.8]} 44. Ke6
{[%clk 0:00:47.5]} 44... Kf4 {[%clk 0:00:18.7]} 45. Kf7 {[%clk 0:00:45.6]} 45...
g5 {[%clk 0:00:18.4]} 46. Kg6 {[%clk 0:00:42.3]} 46... Kxg4 {[%clk 0:00:18.9]}
47. Kxh6 {[%clk 0:00:42.8]} 47... Kh4 {[%clk 0:00:19]} 48. h3 {[%clk 0:00:38.3]}
48... g4 {[%clk 0:00:17.9]} 49. hxg4 {[%clk 0:00:38.6]} 49... Kxg4 {[%clk
0:00:18.8]} 1/2-1/2